bitfinex/quotes_BTCUSD_20260315
["timestamp","ask_amount","ask_price","bid_price","bid_amount"]
[1773612904317,0.12693418,71792.0,71771.0,0.0452976]
[1773612905583,0.12693418,71792.0,71773.0,0.04503143]
[1773612906164,0.05728854,71791.0,71772.0,0.06966505]
[1773612906371,0.05728854,71791.0,71774.0,0.00148]
[1773612906605,0.05728854,71791.0,71778.0,0.00022]
[1773612907214,0.06984409,71794.0,71778.0,0.00022]
[1773612907399,0.05728854,71793.0,71778.0,0.00022]
[1773612908217,0.12693418,71792.0,71779.0,0.00148]
[1773612909176,0.05728854,71789.0,71779.0,0.00148]
[1773612909554,0.05728854,71789.0,71780.0,0.00148]
[1773612909752,0.05728854,71789.0,71781.0,0.00148]
[1773612909957,0.05728854,71789.0,71772.0,0.06359505]
[1773612910152,0.05728854,71788.0,71774.0,0.0696631]
[1773612910540,0.05728854,71788.0,71775.0,0.00148]
[1773612910974,0.05728854,71788.0,71774.0,0.0696631]
[1773612911161,0.05728854,71788.0,71776.0,0.00148]
[1773612912377,0.06965049,71787.0,71773.0,0.0696631]
[1773612912577,0.05728854,71786.0,71771.0,0.06966505]
[1773612912779,0.05728854,71786.0,71774.0,0.00148]
[1773612913338,0.05375718,71786.0,71774.0,0.00148]
[1773612914990,0.06965049,71787.0,71775.0,0.06966213]
[1773612915195,0.12693903,71787.0,71775.0,0.06966213]
[1773612915389,0.05728854,71786.0,71775.0,0.06966213]
[1773612915726,0.05728854,71784.0,71770.0,0.06988645]
[1773612915871,0.06965049,71787.0,71771.0,0.00148]
[1773612915872,0.05728854,71779.0,71771.0,0.00148]
[1773612917194,0.12694744,71779.0,71772.0,0.06966505]
[1773612917396,0.05728854,71779.0,71772.0,0.06966505]
[1773612918825,0.0696534,71784.0,71772.0,0.06966505]
[1773612919591,0.05728854,71783.0,71773.0,0.00148]
[1773612919818,0.05728854,71783.0,71774.0,0.00148]
[1773612920007,0.05728854,71783.0,71775.0,0.00148]
[1773612921610,0.06965534,71782.0,71775.0,0.00148]
[1773612921840,0.05728854,71781.0,71770.0,0.02452164]
[1773612922034,0.05728854,71781.0,71751.0,0.21106644]
[1773612922035,0.05379718,71779.0,71751.0,0.15392]
[1773612922214,0.05379718,71765.0,71752.0,0.06968444]
[1773612922417,0.05379718,71765.0,71752.0,0.0696843]
[1773612922622,0.05379718,71765.0,71757.0,0.00148]
[1773612923509,0.05379718,71765.0,71758.0,0.00148]
[1773612923910,0.06967281,71764.0,71758.0,0.00148]
[1773612925060,0.06967281,71764.0,71760.0,0.00022]
[1773612925265,0.05379718,71763.0,71760.0,0.00022]
[1773612926053,0.06967408,71763.0,71760.0,0.00022]
[1773612926568,0.05379718,71762.0,71760.0,0.00022]
[1773612928076,0.06967408,71763.0,71760.0,0.00022]
[1773612928400,0.06967378,71765.0,71760.0,0.00022]
[1773612928972,0.05379718,71764.0,71753.0,0.0002662]
[1773612929169,0.05379718,71764.0,71749.0,0.06968735]
[1773612929368,0.05379718,71764.0,71751.0,0.00148]
[1773612931211,0.06967378,71763.0,71751.0,0.07116519]
[1773612931418,0.05379718,71762.0,71751.0,0.07116519]
[1773612931612,0.05379718,71762.0,71751.0,0.00148]
[1773612931863,0.05379718,71762.0,71760.0,0.00022]
[1773612932281,0.05379718,71762.0,71758.0,0.00148]
[1773612933220,0.06967572,71761.0,71758.0,0.00148]
[1773612933422,0.05379718,71760.0,71745.0,5e-05]
[1773612933629,0.05379718,71749.0,71731.0,0.0002002]
[1773612934054,0.05379718,71749.0,71726.0,0.0114675]
[1773612934459,0.05379718,71739.0,71719.0,0.0002002]
[1773612934666,0.05379718,71739.0,71720.0,0.00148]
[1773612934869,0.00035573,71739.0,71721.0,0.05489476]
[1773612935043,0.00035573,71739.0,71719.0,0.06991576]
[1773612935044,0.05379718,71738.0,71719.0,0.0002002]
[1773612935506,0.05379718,71736.0,71710.0,0.06977474]
[1773612935708,0.05379718,71736.0,71711.0,0.05489476]
[1773612935853,0.05379718,71736.0,71713.0,0.05489476]
[1773612936052,0.06969903,71737.0,71714.0,0.00148]
[1773612936053,0.05379718,71729.0,71714.0,0.00148]
[1773612936296,0.05379718,71729.0,71710.0,0.06977501]
[1773612936533,0.05379718,71729.0,71710.0,0.06972501]
[1773612936687,0.05379718,71729.0,71711.0,0.00148]
[1773612937083,0.05379718,71736.0,71712.0,0.05489476]
[1773612937426,0.06970098,71735.0,71713.0,0.06972236]
[1773612937627,0.05379718,71734.0,71713.0,0.06972236]
[1773612937792,0.05379718,71734.0,71714.0,0.00148]
[1773612938381,0.27885,71734.0,71715.0,0.05489476]
[1773612939454,0.06970292,71733.0,71716.0,0.06971944]
[1773612939661,0.4023501,71733.0,71716.0,0.06971944]
[1773612939876,0.4023501,71733.0,71717.0,0.00148]
[1773612940250,0.34855292,71733.0,71715.0,0.06971944]
[1773612940457,0.34855292,71733.0,71718.0,0.00148]
[1773612940653,0.4023501,71733.0,71718.0,0.00148]
[1773612941187,0.34855292,71733.0,71718.0,0.05637476]
[1773612941594,0.34855292,71733.0,71720.0,0.05489476]
[1773612941909,0.05379718,71729.0,71695.0,0.06978921]
[1773612942034,0.05379718,71729.0,71711.0,0.00148]
[1773612942232,0.05379718,71729.0,71702.0,0.06993295]
[1773612942233,0.05379718,71727.0,71712.0,0.00148]
[1773612942436,0.05379718,71726.0,71712.0,0.00148]
[1773612942675,0.27885,71726.0,71712.0,0.00148]
[1773612942872,0.27885,71726.0,71713.0,0.00148]
[1773612943075,0.05379718,71725.0,71707.0,0.0869722]
[1773612943286,0.05379718,71725.0,71708.0,0.00148]
[1773612943707,0.06971167,71724.0,71709.0,0.06972625]
[1773612944031,0.06971167,71724.0,71712.0,0.001]
[1773612944566,0.34856167,71726.0,71713.0,0.05489476]
[1773612944816,0.34856167,71726.0,71714.0,0.00148]
[1773612946069,0.40235885,71726.0,71712.0,0.06972291]
[1773612946270,0.40235885,71726.0,71713.0,0.00148]
[1773612946467,0.05379718,71725.0,71713.0,0.00148]
[1773612946667,0.34856167,71726.0,71713.0,0.00148]
[1773612947097,0.05379718,71725.0,71713.0,0.00148]
[1773612947599,0.05379718,71725.0,71714.0,0.00148]
[1773612948220,0.06971167,71724.0,71714.0,0.07120109]
[1773612949966,0.12557708,71726.0,71715.0,0.05489476]
[1773612950367,0.00035573,71739.0,71715.0,0.05489476]
[1773612950368,0.00035573,71739.0,71717.0,0.05489476]
[1773612950676,0.07005348,71739.0,71717.0,0.05489476]
[1773612951008,0.06969029,71746.0,71717.0,0.05489476]
[1773612951252,0.05379718,71745.0,71717.0,0.04025049]
[1773612952228,0.05379718,71745.0,71717.0,0.02525049]
[1773612953450,0.0555814,71739.0,71717.0,0.00035573]
[1773612953644,0.0555814,71739.0,71713.0,0.0002]
[1773612953645,0.0555814,71729.0,71718.0,0.00148]
[1773612953875,0.0555814,71729.0,71713.0,0.0002]
[1773612953876,0.05593713,71729.0,71719.0,0.00148]
[1773612954911,0.06969223,71744.0,71713.0,0.06992224]
[1773612955055,0.06969223,71744.0,71714.0,0.0568782]
[1773612955262,0.0555814,71743.0,71715.0,0.00148]
[1773612955633,0.0555814,71739.0,71717.0,0.06971847]
[1773612956508,0.0555814,71739.0,71718.0,0.00148]
[1773612956883,0.0555814,71739.0,71719.0,0.00148]
[1773612958461,0.0555814,71737.0,71720.0,0.06971556]
[1773612958732,0.04860859,71737.0,71720.0,0.06971556]
[1773612960282,0.04860859,71737.0,71719.0,0.07139624]
[1773612960486,0.0555814,71735.0,71719.0,0.06991624]
[1773612960689,0.0555814,71733.0,71719.0,0.07139624]
[1773612961954,0.0555814,71733.0,71719.0,0.00168]
[1773612962195,0.0555814,71729.0,71719.0,0.0002]
[1773612962560,0.0555814,71727.0,71713.0,0.00055573]
[1773612962888,0.06970778,71728.0,71711.0,0.0002]
[1773612962889,0.0555814,71725.0,71711.0,0.0002]
[1773612963096,0.05593713,71725.0,71711.0,0.00016]
[1773612963871,0.20855391,71728.0,71711.0,0.0698841]
[1773612963872,0.0555814,71727.0,71711.0,0.0698841]
[1773612964072,0.0555814,71727.0,71711.0,0.07023983]
[1773612964597,0.06970972,71726.0,71712.0,0.00148]
[1773612964920,0.00148,71734.0,71713.0,0.0568782]
[1773612965213,0.0555814,71740.0,71713.0,0.0568782]
[1773612965214,0.00148,71733.0,71713.0,0.0568782]
[1773612965940,0.00148,71738.0,71713.0,0.0568782]
[1773612966635,0.11093313,71748.0,71715.0,0.0568782]
[1773612966787,0.0003331,71760.0,71715.0,0.0568782]
[1773612966788,0.06973128,71756.0,71715.0,0.0568782]
[1773612967197,0.12531268,71756.0,71715.0,0.0568782]
[1773612967404,0.06973128,71756.0,71715.0,0.0568782]
[1773612967623,0.06968155,71755.0,71718.0,0.0568782]
[1773612967984,0.0003331,71760.0,71729.0,0.11777333]
[1773612968173,0.07001036,71760.0,71730.0,0.0583582]
[1773612968610,0.07001036,71760.0,71732.0,0.0568782]
[1773612968611,0.07001027,71760.0,71732.0,0.0568782]
[1773612969158,0.00022001,71748.0,71732.0,0.0568782]
[1773612969579,0.0003331,71760.0,71732.0,0.0568782]
[1773612969785,0.00037001,71762.0,71733.0,0.0568782]
[1773612970185,5e-05,71764.0,71734.0,0.0568782]
[1773612970390,5e-05,71766.0,71734.0,0.0568782]
[1773612970591,5e-05,71766.0,71735.0,0.06970098]
[1773612970786,5e-05,71766.0,71736.0,0.0568782]
[1773612970987,5e-05,71766.0,71738.0,0.0568782]
[1773612971409,0.17477672,71770.0,71738.0,0.0568782]
[1773612971607,0.23035812,71770.0,71738.0,0.0568782]
[1773612972009,0.0555814,71769.0,71738.0,0.0568782]
[1773612972545,0.0555814,71769.0,71738.0,0.0578782]
[1773612972726,0.12524983,71769.0,71742.0,0.0568782]
[1773612974218,0.06966843,71769.0,71742.0,0.0568782]
[1773612974664,0.06966843,71769.0,71742.0,0.0578782]
[1773612974999,0.0555814,71774.0,71744.0,0.0568782]
[1773612975229,0.0555814,71774.0,71746.0,0.0568782]
[1773612977372,0.06966407,71773.0,71748.0,0.0568782]
[1773612977572,0.05580141,71769.0,71748.0,0.0568782]
[1773612977940,0.00022001,71769.0,71748.0,0.0568782]
[1773612978655,0.00022001,71769.0,71748.0,0.0578782]
[1773612979449,0.06966893,71768.0,71750.0,0.0568782]
[1773612979649,0.06966893,71768.0,71749.0,0.06968738]
[1773612979650,0.06966893,71768.0,71751.0,0.0568782]
[1773612979845,0.0555814,71767.0,71749.0,0.06968738]
[1773612980047,0.0555814,71767.0,71750.0,0.00148]
[1773612980713,0.0555814,71767.0,71750.0,0.0583582]
[1773612981519,0.06967087,71766.0,71751.0,0.06968543]
[1773612981723,0.12525227,71766.0,71752.0,0.00148]
[1773612982022,0.12525227,71766.0,71751.0,0.06968543]
[1773612982221,0.12525227,71766.0,71751.0,0.07116543]
[1773612982425,0.12525227,71766.0,71752.0,0.00148]
[1773612983636,0.05698468,71766.0,71752.0,0.00148]
[1773612983818,0.05698468,71766.0,71752.0,0.07116428]
[1773612984948,0.05698468,71766.0,71753.0,0.00148]
[1773612985557,0.01738025,71768.0,71753.0,0.00148]
[1773612986311,0.06967184,71765.0,71753.0,0.00148]
[1773612986538,0.06967184,71765.0,71753.0,0.07116259]
[1773612987132,0.06967184,71765.0,71754.0,0.00148]
[1773612987726,0.06967184,71765.0,71748.0,0.07116738]
[1773612987929,0.04375273,71758.0,71736.0,0.0698063]
[1773612988142,0.09096194,71759.0,71737.0,0.00148]
[1773612988143,0.17476876,71750.0,71737.0,0.00148]
[1773612988362,0.04354771,71748.0,71736.0,0.00010667]
[1773612988586,0.04354771,71748.0,71733.0,0.00148]
[1773612988754,0.0436544,71748.0,71732.0,0.00148]
[1773612988974,0.0436544,71748.0,71726.0,0.05817922]
[1773612989174,0.0436544,71748.0,71727.0,0.00148]
[1773612989385,0.0436544,71748.0,71726.0,0.05817922]
[1773612989551,0.0436544,71748.0,71728.0,0.00148]
[1773612989763,0.0436544,71748.0,71721.0,0.06999574]
[1773612989764,0.04334362,71739.0,71725.0,0.00148]
[1773612989977,0.04334362,71739.0,71726.0,0.00148]
[1773612990386,0.06969806,71738.0,71723.0,0.00148]
[1773612990585,0.06969806,71738.0,71723.0,0.05965922]
[1773612990933,0.04312871,71737.0,71723.0,0.00148]
[1773612991501,0.06969806,71738.0,71723.0,0.00148]
[1773612992065,0.00070812,71736.0,71723.0,0.00148]
[1773612992725,0.06970098,71735.0,71723.0,0.07119219]
[1773612993227,0.06970098,71735.0,71723.0,0.00148]
[1773612993665,0.06970098,71735.0,71721.0,0.06999743]
[1773612994240,0.06970098,71735.0,71722.0,0.00148]
[1773612994847,0.06970098,71735.0,71722.0,0.07119303]
[1773612995010,0.06970098,71735.0,71722.0,0.06971303]
[1773612995209,0.01738025,71734.0,71723.0,0.0017]
[1773612995478,0.01738025,71734.0,71724.0,0.05817922]
[1773612995683,0.06970098,71736.0,71724.0,0.05817922]
[1773612996420,0.06970098,71736.0,71724.0,0.05833852]
[1773612996965,0.06968738,71749.0,71724.0,0.06987039]
[1773612996966,0.05698468,71739.0,71724.0,0.06987039]
[1773612998166,0.06969612,71741.0,71725.0,0.05817922]
[1773612998343,0.06969612,71741.0,71725.0,0.05833852]
[1773612999089,0.06979504,71748.0,71726.0,0.06970972]
[1773612999280,0.07127504,71748.0,71727.0,0.05817922]
[1773612999737,0.12825972,71748.0,71727.0,0.05817922]
[1773612999879,0.12677972,71748.0,71727.0,0.05817922]
[1773613000086,0.12825972,71748.0,71727.0,0.05817922]
[1773613000279,0.12825972,71748.0,71726.0,0.06986902]
[1773613000280,0.05698468,71746.0,71726.0,0.07134902]
[1773613001140,0.05698468,71744.0,71726.0,0.07134902]
[1773613004125,0.05698468,71742.0,71726.0,0.07134902]
[1773613004364,0.05698468,71742.0,71727.0,0.00148]
[1773613004990,0.17476876,71740.0,71727.0,0.00148]
[1773613005138,0.05698468,71739.0,71727.0,0.00148]
[1773613005546,0.05698468,71739.0,71723.0,0.00022]
[1773613005547,0.17476876,71740.0,71713.0,0.0002]
[1773613005886,0.05698468,71729.0,71713.0,0.0002]
[1773613006106,0.05698468,71729.0,71714.0,0.00148]
[1773613006259,0.06970778,71728.0,71714.0,0.00148]
[1773613008584,0.00148,71731.0,71715.0,0.05817922]
[1773613008787,0.06969498,71742.0,71715.0,0.05817922]
[1773613009012,0.07117498,71742.0,71715.0,0.05817922]
[1773613009818,0.06969498,71742.0,71715.0,0.11058857]
[1773613010046,0.06969498,71742.0,71716.0,0.05817922]
[1773613010368,0.06991241,71744.0,71718.0,0.05817922]
[1773613010507,0.06991241,71744.0,71719.0,0.05817922]
[1773613010706,0.00022001,71744.0,71719.0,0.05817922]
[1773613010918,0.05698468,71743.0,71719.0,0.05817922]
[1773613011111,0.05698468,71743.0,71717.0,0.18030704]
[1773613011112,0.05698468,71743.0,71721.0,0.05817922]
[1773613011513,0.05698468,71743.0,71722.0,0.00148]
[1773613011716,0.05698468,71743.0,71722.0,0.05817922]
[1773613011912,0.05698468,71743.0,71723.0,0.05710954]
[1773613012474,0.06969418,71742.0,71724.0,0.06971167]
[1773613012673,0.12845814,71742.0,71724.0,0.06971167]
[1773613013034,0.06969418,71742.0,71724.0,0.06971167]
[1773613013233,0.05876396,71741.0,71723.0,0.00148]
[1773613013469,0.05876396,71741.0,71723.0,0.0711922]
[1773613014209,0.05876396,71739.0,71723.0,0.0711922]
[1773613014393,0.05876396,71739.0,71722.0,0.00148]
[1773613014838,0.05876396,71737.0,71722.0,0.00148]
[1773613016685,0.06969806,71738.0,71722.0,0.07119326]
[1773613016884,0.05876396,71737.0,71722.0,0.00148]
[1773613017303,0.05876396,71737.0,71722.0,0.07119343]
[1773613018346,0.05876396,71737.0,71722.0,0.00148]
[1773613018537,0.05876396,71737.0,71720.0,0.06971361]
[1773613018738,0.05876396,71737.0,71722.0,0.00148]
[1773613019095,0.12846397,71736.0,71722.0,0.0711936]
[1773613019738,0.00148,71735.0,71722.0,0.07119355]
[1773613021258,0.06970195,71734.0,71722.0,0.07119355]
[1773613022150,0.06969806,71738.0,71722.0,0.07119355]
[1773613022151,0.06979543,71748.0,71728.0,0.11058857]
[1773613022311,0.06979543,71748.0,71730.0,0.05587729]
[1773613022510,0.06979543,71748.0,71730.0,0.11058857]
[1773613022708,0.06979543,71748.0,71731.0,0.16646586]
[1773613022928,0.05876396,71756.0,71732.0,0.05587729]
[1773613023130,0.06972571,71762.0,71734.0,0.05587729]
[1773613023330,0.06972699,71760.0,71735.0,0.05587729]
[1773613023534,0.06967378,71763.0,71736.0,0.11058857]
[1773613023740,0.06967184,71765.0,71743.0,0.05587729]
[1773613023900,0.06988855,71769.0,71745.0,0.05587729]
[1773613024253,0.00022001,71769.0,71747.0,0.11058857]
[1773613024489,0.06986407,71774.0,71750.0,0.05587729]
[1773613024725,0.06986331,71774.0,71752.0,0.05587729]
[1773613025262,0.06986331,71774.0,71754.0,0.05587729]
[1773613026381,0.0549703,71774.0,71754.0,0.05587729]
[1773613027214,0.0399703,71774.0,71754.0,0.05587729]
[1773613027379,0.00010699,71774.0,71756.0,0.05587729]
[1773613027573,0.00010699,71774.0,71755.0,0.06968155]
[1773613027574,0.00010699,71774.0,71758.0,0.05587729]
[1773613029639,0.00010699,71774.0,71759.0,0.06967767]
[1773613030245,0.00030699,71774.0,71759.0,0.12555496]
[1773613030675,0.00030699,71774.0,71759.0,0.06967767]
[1773613030923,0.00030699,71774.0,71760.0,0.05587729]
[1773613031675,0.00030699,71774.0,71763.0,0.05587729]
[1773613032099,0.06997034,71774.0,71763.0,0.05587729]
[1773613032246,0.06997034,71774.0,71764.0,0.00148]
[1773613032447,0.05876396,71773.0,71757.0,0.06967919]
[1773613032695,0.05876396,71773.0,71758.0,0.00148]
[1773613033053,0.05876396,71773.0,71757.0,0.06967919]
[1773613033054,0.05876396,71773.0,71759.0,0.00148]
[1773613033256,0.05876396,71773.0,71760.0,0.00148]
[1773613033732,0.06966505,71772.0,71760.0,0.0696764]
[1773613033867,0.06966505,71772.0,71761.0,0.00148]
[1773613034421,0.06966505,71772.0,71760.0,0.0696764]
[1773613034621,0.06966505,71772.0,71761.0,0.00148]
[1773613035173,0.06966505,71772.0,71760.0,0.0696764]
[1773613035591,0.06966505,71772.0,71761.0,0.05587729]
[1773613036009,0.06966505,71772.0,71762.0,0.06967475]
[1773613036178,0.06966505,71772.0,71762.0,0.07115475]
[1773613037709,0.06966505,71773.0,71762.0,0.07115475]
[1773613037937,0.06953705,71773.0,71762.0,0.07115475]
[1773613038317,5e-05,71775.0,71763.0,0.05587729]
[1773613038555,5e-05,71775.0,71763.0,0.05598428]
[1773613038734,0.0002,71772.0,71763.0,0.05598428]
[1773613039265,0.0002,71772.0,71763.0,0.00010699]
[1773613039938,0.0002,71772.0,71763.0,0.05598428]
[1773613040111,0.0002,71772.0,71763.0,0.00010699]
[1773613041038,0.06986596,71772.0,71763.0,0.00010699]
[1773613041627,0.0002,71772.0,71764.0,0.05587729]
[1773613041850,5e-05,71775.0,71764.0,0.05587729]
[1773613042383,5e-05,71775.0,71765.0,0.1246635]
[1773613042580,0.0004742,71780.0,71766.0,0.05499166]
[1773613042756,0.0002,71782.0,71766.0,0.05499166]
[1773613044245,0.0002,71782.0,71767.0,0.0696699]
[1773613044547,0.0002,71782.0,71768.0,0.05499166]
[1773613045296,0.0002,71782.0,71770.0,0.05499166]
[1773613046400,0.0002,71782.0,71771.0,0.06966602]
[1773613046599,0.0002,71782.0,71772.0,0.05499166]
[1773613048563,0.0002,71782.0,71773.0,0.12465573]
[1773613048787,0.0002,71782.0,71774.0,0.05499166]
[1773613049011,0.00025,71787.0,71774.0,0.05499166]
[1773613049213,0.06990075,71787.0,71774.0,0.05499166]
[1773613049373,0.06990075,71787.0,71774.0,0.04873767]
[1773613049994,0.06990075,71787.0,71776.0,0.05499166]
[1773613050804,0.169,71782.0,71778.0,0.05499166]
[1773613051152,0.06991696,71795.0,71778.0,0.05499166]
[1773613051497,0.0002742,71795.0,71778.0,0.05499166]
[1773613051698,0.06984389,71794.0,71778.0,0.05499166]
[1773613052739,0.0002,71794.0,71778.0,0.05499166]
[1773613052943,0.06984406,71794.0,71779.0,0.06965825]
[1773613053508,0.05666995,71793.0,71775.0,0.06966144]
[1773613053851,0.05666995,71793.0,71776.0,0.00148]
[1773613054052,0.0002,71794.0,71776.0,0.00148]
[1773613054224,0.0698438,71794.0,71777.0,0.03928412]
[1773613054673,0.0002,71794.0,71777.0,0.03928412]
[1773613054874,0.0002,71794.0,71779.0,0.03928412]
[1773613055027,0.0002,71797.0,71779.0,0.03928412]
[1773613055431,0.0002,71799.0,71779.0,0.03928412]
[1773613057208,0.0002,71799.0,71780.0,0.06965728]
[1773613057506,0.0002,71799.0,71781.0,0.03847916]
[1773613058260,1e-08,71802.0,71781.0,0.03847916]
[1773613058467,0.0002,71809.0,71788.0,0.11058857]
[1773613058468,1e-08,71807.0,71788.0,0.11058857]
[1773613058779,1e-08,71809.0,71790.0,0.03791873]
[1773613058979,1e-08,71809.0,71792.0,0.03791873]
[1773613059186,1e-08,71809.0,71793.0,0.06964467]
[1773613059379,1e-08,71809.0,71794.0,0.03928813]
[1773613059585,0.00035678,71809.0,71794.0,0.03928813]
[1773613061395,0.00035678,71809.0,71795.0,0.06964273]
[1773613061576,0.00035678,71809.0,71796.0,0.03759437]
[1773613063675,0.00035678,71809.0,71797.0,0.06964079]
[1773613065357,0.00035678,71809.0,71797.0,0.10055317]
[1773613066055,0.00035678,71809.0,71798.0,0.03091238]
[1773613066254,0.0002,71817.0,71798.0,0.03091238]
[1773613066573,0.00025694,71813.0,71798.0,0.03091238]
[1773613067904,0.0002,71817.0,71798.0,0.03091238]
[1773613068036,0.0002,71817.0,71799.0,0.06963885]
[1773613068236,0.0002,71817.0,71800.0,0.03144664]
[1773613068981,0.0002,71813.0,71800.0,0.03144664]
[1773613070291,0.0002,71813.0,71802.0,0.02974487]
[1773613071565,0.00025,71821.0,71802.0,0.02974487]
[1773613071766,0.00025,71821.0,71803.0,0.05499166]
[1773613072153,0.0002,71828.0,71804.0,0.11058857]
[1773613072380,0.0002,71828.0,71806.0,0.05838527]
[1773613072572,0.0002,71828.0,71807.0,0.0578773]
[1773613072950,0.0002,71828.0,71808.0,0.11058857]
[1773613073156,0.0002,71828.0,71809.0,0.0563973]
[1773613073367,0.05679806,71827.0,71808.0,0.11058857]
[1773613073563,0.0002,71828.0,71810.0,0.0563973]
[1773613073768,5e-05,71832.0,71812.0,0.0563973]
[1773613074248,0.0002175,71844.0,71820.0,0.17475268]
[1773613074438,0.0002175,71844.0,71813.0,0.06962527]
[1773613074439,0.0002175,71844.0,71821.0,0.0578773]
[1773613074652,0.0002175,71844.0,71819.0,0.15164]
[1773613074653,0.0002175,71844.0,71823.0,0.0563973]
[1773613075409,0.01134688,71840.0,71823.0,0.0563973]
[1773613075626,0.0002175,71844.0,71823.0,0.0563973]
[1773613075756,0.0002175,71844.0,71823.0,0.05650418]
[1773613076168,0.000263,71857.0,71823.0,0.05650418]
[1773613076169,0.05706106,71857.0,71823.0,0.05750418]
[1773613076410,0.05706106,71857.0,71825.0,0.0563973]
[1773613076580,0.000263,71857.0,71825.0,0.0563973]
[1773613076782,0.000263,71857.0,71831.0,0.0563973]
[1773613076989,0.000263,71857.0,71833.0,0.0563973]
[1773613077189,5e-05,71862.0,71824.0,0.06961461]
[1773613077190,5e-05,71862.0,71835.0,0.0563973]
[1773613077389,5e-05,71862.0,71837.0,0.0563973]
[1773613077590,5e-05,71862.0,71839.0,0.0563973]
[1773613077785,0.05679806,71861.0,71839.0,0.0562773]
[1773613078396,0.05679806,71861.0,71841.0,0.0563973]
[1773613078590,0.05679806,71860.0,71842.0,0.00148]
[1773613078797,0.05679806,71860.0,71843.0,0.00148]
[1773613080239,5e-05,71862.0,71845.0,0.06959426]
[1773613080749,0.05684806,71862.0,71845.0,0.06959426]
[1773613080971,0.05684806,71862.0,71823.0,0.15176]
[1773613080972,0.05684806,71862.0,71832.0,0.06960591]
[1773613081179,0.05684806,71862.0,71833.0,0.07108589]
[1773613081389,0.05679806,71860.0,71834.0,0.00148]
[1773613081740,0.05679806,71860.0,71835.0,0.00148]
[1773613082390,0.05679806,71860.0,71816.0,0.06962236]
[1773613082391,0.17475268,71850.0,71816.0,0.06962236]
[1773613082696,0.05679806,71848.0,71817.0,0.00148]
[1773613082889,0.05679806,71848.0,71818.0,0.0563973]
[1773613084019,0.05679806,71848.0,71819.0,0.00148]
[1773613084236,0.05679806,71848.0,71821.0,0.05733897]
[1773613084428,0.05679806,71848.0,71823.0,0.10267065]
[1773613084799,0.05679806,71848.0,71823.0,0.06961558]
[1773613084968,0.05679806,71847.0,71823.0,0.06961558]
[1773613086180,0.05679806,71847.0,71824.0,0.00148]
[1773613086411,0.05679806,71845.0,71825.0,0.06961364]
[1773613086581,0.05679806,71845.0,71827.0,0.03435789]
[1773613086801,0.05679806,71845.0,71825.0,0.06961364]
[1773613088434,0.05679806,71844.0,71826.0,0.00148]
[1773613088649,0.05679806,71844.0,71827.0,0.00148]
[1773613089005,0.05679806,71844.0,71828.0,0.00148]
[1773613089188,0.05679806,71844.0,71829.0,0.00148]
[1773613089388,0.05679806,71844.0,71830.0,0.00148]
[1773613090083,0.05679806,71844.0,71831.0,0.00148]
[1773613090249,0.00148,71843.0,71820.0,0.00148]
[1773613090458,0.00148,71843.0,71815.0,5e-05]
[1773613090459,0.05679806,71840.0,71815.0,5e-05]
[1773613090787,0.05679806,71840.0,71818.0,0.00148]
[1773613091545,0.05679806,71840.0,71818.0,0.00158688]
[1773613092794,0.06959969,71840.0,71819.0,0.06961946]
[1773613093153,0.05679806,71839.0,71819.0,0.06961946]
[1773613094010,0.05635406,71839.0,71819.0,0.06961946]
[1773613094233,0.05635406,71839.0,71820.0,0.00148]
[1773613094979,0.05679806,71837.0,71821.0,0.06961752]
[1773613096576,0.00148,71843.0,71822.0,0.03848252]
[1773613096776,0.05679806,71845.0,71821.0,0.06961752]
[1773613096954,0.05679806,71843.0,71822.0,0.00148]
[1773613097143,0.05679806,71843.0,71820.0,0.06961752]
[1773613097144,0.05679806,71843.0,71823.0,0.00148]
[1773613097339,0.05679806,71843.0,71819.0,0.06961849]
[1773613097616,0.05679806,71843.0,71820.0,0.07109781]
[1773613098337,0.17439494,71840.0,71820.0,0.00148]
[1773613098463,0.05679806,71839.0,71819.0,0.06961881]
[1773613098676,0.05679806,71839.0,71818.0,0.00010688]
[1773613098885,0.05679806,71839.0,71820.0,0.06961849]
[1773613098886,0.06960104,71838.0,71820.0,0.06961849]
[1773613099224,0.05827806,71837.0,71820.0,0.06961849]
[1773613099426,0.05827806,71837.0,71818.0,0.07109982]
[1773613101344,0.05679806,71835.0,71818.0,0.07109982]
[1773613101695,0.05679806,71835.0,71818.0,0.00148]
[1773613102523,0.05779806,71835.0,71818.0,0.07110011]
[1773613102750,0.05779806,71835.0,71810.0,0.06967814]
[1773613102985,0.05690486,71835.0,71810.0,0.06967814]
[1773613103310,0.05690486,71835.0,71811.0,0.05901419]
[1773613103311,0.06971097,71835.0,71811.0,0.05901419]
[1773613103746,0.05976798,71834.0,71811.0,0.05901419]
[1773613105438,0.05976798,71834.0,71812.0,0.06962624]
[1773613105439,0.05976798,71832.0,71812.0,0.06962624]
[1773613107566,0.06960782,71831.0,71810.0,0.06962624]
[1773613107771,0.05976798,71830.0,71811.0,0.00022]
[1773613107975,0.04476798,71830.0,71811.0,0.00022]
[1773613108376,0.00148,71829.0,71811.0,0.00022]
[1773613108908,0.05851706,71829.0,71811.0,0.00022]
[1773613109114,0.05851706,71829.0,71811.0,0.05923419]
[1773613109877,0.06961073,71828.0,71812.0,0.06962624]
[1773613110137,0.05702674,71827.0,71812.0,0.06962624]
[1773613110870,0.05815141,71830.0,71813.0,0.05901419]
[1773613111113,0.04336788,71829.0,71812.0,0.06962624]
[1773613111322,0.04336788,71829.0,71804.0,0.05906419]
[1773613111323,0.5815141,71822.0,71793.0,0.06964449]
[1773613111494,0.04174919,71809.0,71796.0,0.06964159]
[1773613111690,0.04322919,71809.0,71797.0,0.0696407]
[1773613112094,0.04174919,71818.0,71799.0,0.07734536]
[1773613112275,0.05815141,71820.0,71800.0,0.06049419]
[1773613112276,0.12777013,71820.0,71800.0,0.06049419]
[1773613112477,0.12925013,71820.0,71800.0,0.06049419]
[1773613112727,0.12931952,71820.0,71800.0,0.06049419]
[1773613112935,0.07116811,71820.0,71800.0,0.06049419]
[1773613113517,0.04341508,71819.0,71800.0,0.00148]
[1773613113734,0.001,71809.0,71800.0,0.00148]
[1773613113930,0.06962236,71816.0,71801.0,0.06963691]
[1773613114131,0.06962117,71818.0,71802.0,0.05901419]
[1773613116066,0.06962117,71818.0,71801.0,0.06963691]
[1773613116395,0.11267574,71818.0,71801.0,0.1286511]
[1773613116587,0.06962117,71818.0,71802.0,0.05901419]
[1773613117646,0.06962117,71818.0,71803.0,0.00148]
[1773613117841,0.06962117,71818.0,71804.0,0.00148]
[1773613118082,0.06962117,71818.0,71805.0,0.06963303]
[1773613118503,0.06962117,71818.0,71799.0,0.00770685]
[1773613118504,0.06962117,71818.0,71806.0,0.00148]
[1773613118662,0.04283374,71817.0,71799.0,0.07111862]
[1773613119477,0.04283374,71817.0,71799.0,0.07111811]
[1773613119887,0.04283374,71817.0,71799.0,0.1301323]